bitfinex/quotes_ETHUSD_20220215
["timestamp","ask_amount","ask_price","bid_price","bid_amount"]
[1644958025678,0.001,3110.0,3109.2,0.72927163]
[1644958025876,0.80511,3110.0,3109.2,0.72927163]
[1644958026073,0.63097652,3109.9,3109.3,0.99811652]
[1644958026974,1.43507652,3109.9,3109.1,0.00852715]
[1644958027176,0.63097652,3109.8,3109.2,0.72839647]
[1644958027978,2.23926652,3109.8,3109.2,0.72839647]
[1644958028263,1.60932,3110.0,3108.7,1.2496]
[1644958028264,0.67682801,3109.1,3108.7,1.2496]
[1644958028456,0.67682801,3109.1,3108.8,0.72823254]
[1644958028656,0.67682801,3109.1,3108.9,0.72823254]
[1644958028856,0.67682801,3109.1,3108.5,0.72823254]
[1644958029058,0.67682801,3109.1,3108.6,0.72823254]
[1644958029259,0.67682801,3109.1,3108.7,0.72823254]
[1644958029456,0.67682801,3109.1,3108.8,0.72823254]
[1644958029659,0.67682801,3109.1,3108.8,4.94510322]
[1644958029856,0.67682801,3109.1,3108.9,0.72823254]
[1644958030056,0.67682801,3109.1,3109.0,3.25479041]
[1644958030456,0.67682801,3109.1,3109.0,4.98302295]
[1644958030860,0.67682801,3109.1,3109.0,1.72823254]
[1644958031462,0.001,3110.0,3109.1,23.7]
[1644958031658,0.001,3110.0,3109.3,0.80393]
[1644958031978,0.001,3110.0,3109.4,5.02815897]
[1644958032182,0.001,3110.0,3109.4,5.75639151]
[1644958032381,0.001,3110.0,3109.7,1.05698059]
[1644958032578,0.001,3110.0,3109.5,1.72823254]
[1644958032579,0.001,3110.0,3109.8,0.72823254]
[1644958032779,0.001,3110.0,3109.5,1.463]
[1644958032981,0.61797283,3110.0,3109.5,1.463]
[1644958033178,0.001,3110.0,3109.5,0.463]
[1644958033581,0.80507,3110.0,3109.5,0.463]
[1644958033782,0.61660623,3109.9,3109.3,1.04586563]
[1644958034482,0.61660623,3109.9,3109.1,0.01578802]
[1644958034981,0.80412,3109.8,3108.3,0.463]
[1644958035181,0.61660623,3109.7,3108.4,0.73977621]
[1644958035381,4.97158529,3109.7,3108.4,0.73977621]
[1644958035580,0.8370926,3109.0,3108.4,0.73977621]
[1644958035828,0.8044,3109.2,3108.4,0.73977621]
[1644958036038,2.2245787,3109.1,3108.5,0.73977621]
[1644958036224,1.60876,3109.1,3108.6,0.73977621]
[1644958036424,0.61579904,3109.0,3108.2,2.36590951]
[1644958036625,0.61579904,3109.0,3108.8,1.0996048]
[1644958036825,1.1266,3109.6,3108.8,1.0996048]
[1644958037031,1.42001774,3109.5,3108.8,1.0996048]
[1644958037230,0.61581774,3109.4,3108.8,1.0996048]
[1644958037630,0.61581774,3109.3,3108.8,1.0996048]
[1644958037825,0.8042336,3109.7,3108.8,1.0996048]
[1644958037826,0.61581774,3109.2,3108.8,1.0996048]
[1644958038026,0.61581774,3109.1,3108.8,1.0996048]
[1644958038225,0.80425,3109.2,3108.8,1.0996048]
[1644958038426,0.61578654,3109.1,3108.8,1.0996048]
[1644958038825,0.80425,3109.2,3108.8,1.0996048]
[1644958039028,0.61580633,3109.1,3108.8,1.0996048]
[1644958039484,0.80425,3109.2,3108.8,1.0996048]
[1644958039688,0.61586565,3109.1,3108.8,1.0996048]
[1644958040085,0.8043,3109.0,3108.2,1.0]
[1644958040288,0.8043,3109.0,3108.3,0.74107852]
[1644958040888,1.12038838,3109.5,3108.3,0.74107852]
[1644958041085,0.61614603,3109.4,3108.4,0.74107852]
[1644958041291,0.61614603,3109.4,3108.5,0.74107852]
[1644958041486,0.80432,3109.2,3108.6,1.92547447]
[1644958041692,0.61614603,3109.1,3108.7,0.7412608]
[1644958041986,0.80434,3108.9,3108.6,1.18439595]
[1644958042187,0.61614603,3109.1,3108.6,1.18439595]
[1644958042390,0.61614603,3109.2,3108.7,0.74125611]
[1644958042789,2.4127321,3109.7,3108.7,4.02309257]
[1644958042994,0.001,3110.0,3108.8,1.74125611]
[1644958043251,0.001,3110.0,3108.9,4.54709281]
[1644958043252,0.61743446,3110.0,3108.9,4.54709281]
[1644958043434,0.61743446,3110.0,3109.0,0.74125611]
[1644958043435,0.001,3110.0,3109.0,0.74125611]
[1644958043635,0.001,3110.0,3109.1,3.24055688]
[1644958043838,0.001,3110.0,3109.6,0.93320725]
[1644958044035,0.80407,3109.9,3108.9,3.72846567]
[1644958044237,0.61643446,3109.8,3109.0,0.74169648]
[1644958044439,0.61643446,3109.8,3108.9,4.22794117]
[1644958044636,0.61643446,3109.8,3109.0,0.74169648]
[1644958044836,0.61643446,3109.7,3108.8,1.0]
[1644958045037,1.42068456,3109.6,3108.9,0.74173113]
[1644958045236,1.42068456,3109.6,3108.7,1.2182]
[1644958045237,0.61643446,3109.5,3108.7,1.2182]
[1644958045436,0.61643446,3109.5,3108.8,0.74176117]
[1644958045837,0.61643446,3109.5,3108.5,2.7914]
[1644958046037,0.61643446,3109.5,3108.4,1.6712]
[1644958046038,1.42072446,3109.5,3108.6,0.7417917]
[1644958046344,1.42071446,3109.4,3108.7,1.60119698]
[1644958046636,0.61643446,3109.3,3108.4,1.2082]
[1644958046835,0.61643446,3109.2,3108.5,0.7419839]
[1644958047086,0.61643446,3109.1,3108.5,0.7419839]
[1644958047281,0.61643446,3109.0,3108.5,0.7419839]
[1644958047478,0.61643446,3109.0,3108.6,0.7419839]
[1644958047679,0.61643446,3109.0,3108.7,0.7419839]
[1644958047879,0.61643446,3109.0,3108.5,1.13803824]
[1644958048080,0.61643446,3109.0,3108.6,0.74238194]
[1644958051437,1.42075446,3109.0,3108.6,0.74238194]
[1644958051640,1.42075446,3109.0,3108.0,3.2671]
[1644958051641,0.67498897,3108.5,3108.0,3.2671]
[1644958051833,0.67498897,3108.5,3108.1,0.7428909]
[1644958052034,0.67498897,3108.5,3108.1,0.010466]
[1644958052231,0.67498897,3108.5,3108.2,0.7428909]
[1644958052631,0.6169626,3108.4,3108.2,0.74147681]
[1644958053032,0.6169626,3108.4,3108.0,1.10949753]
[1644958053231,0.6169626,3108.4,3107.8,0.00261665]
[1644958053440,4.03931264,3108.3,3107.8,0.00261665]
[1644958053633,1.10449,3108.4,3107.8,0.00261665]
[1644958054031,1.10449,3108.4,3107.4,0.00430011]
[1644958054335,0.88372715,3107.9,3107.8,0.00168481]
[1644958054783,1.68838715,3107.9,3107.8,0.00168481]
[1644958055181,1.68838715,3107.9,3107.2,0.00430011]
[1644958055582,1.68838715,3107.9,3107.7,0.00168489]
[1644958055983,0.80466,3107.9,3107.7,0.00168489]
[1644958056385,0.80466,3107.9,3107.2,0.00430011]
[1644958056585,0.80456,3108.1,3107.2,0.00430011]
[1644958056784,0.80456,3108.1,3107.6,0.00276025]
[1644958057683,0.80456,3108.1,3107.2,0.01534275]
[1644958057684,0.80456,3108.1,3107.2,0.00430011]
[1644958058085,0.80456,3108.1,3107.7,0.00276022]
[1644958058828,0.80456,3108.1,3107.2,0.00430011]
[1644958059031,0.80456,3108.1,3107.7,0.00276019]
[1644958059730,1.60917,3108.1,3107.7,0.00276019]
[1644958059929,1.60917,3108.1,3107.7,0.00707477]
[1644958060129,1.60917,3108.1,3107.7,0.00431458]
[1644958060333,1.60917,3108.1,3107.7,0.00692485]
[1644958060831,0.80456,3108.1,3107.7,0.00692485]
[1644958061232,0.80456,3108.1,3107.7,0.00431458]
[1644958061432,0.67498897,3108.5,3107.7,3.22744814]
[1644958061634,0.67498897,3108.5,3107.7,3.23005841]
[1644958061831,0.67498897,3108.5,3107.7,0.00692485]
[1644958062088,0.67498897,3108.5,3107.8,1.0]
[1644958062684,1.47945897,3108.5,3107.8,1.0]
[1644958062896,1.47945897,3108.5,3107.8,0.00261026]
[1644958063082,1.47945897,3108.5,3107.8,1.00261026]
[1644958063282,1.47945897,3108.5,3108.1,0.98837015]
[1644958063486,0.67498897,3108.5,3108.1,0.98837015]
[1644958064284,0.67498897,3108.5,3107.8,1.00262043]
[1644958064687,0.67498897,3108.5,3107.8,1.80700043]
[1644958064884,0.67498897,3108.5,3107.8,1.80438]
[1644958065084,0.67498897,3108.5,3107.8,1.80700038]
[1644958065486,0.67498897,3108.5,3107.9,0.8043741]
[1644958065734,0.67498897,3108.5,3108.1,0.97418566]
[1644958066533,0.67498897,3108.5,3108.0,1.0]
[1644958066731,0.67498897,3108.5,3107.8,1.00262043]
[1644958067030,0.67498897,3108.5,3107.8,0.00262043]
[1644958067237,0.67498897,3108.5,3107.7,0.00431458]
[1644958067630,0.67498897,3108.5,3107.8,0.0026197]
[1644958067833,1.47944897,3108.5,3107.8,0.0026197]
[1644958068134,0.98713898,3108.4,3107.8,0.0026197]
[1644958068533,0.98713898,3108.4,3107.7,1.18828589]
[1644958068733,0.98713898,3108.4,3107.8,0.00261968]
[1644958068734,1.79164898,3108.4,3107.8,0.00261968]
[1644958069585,1.79164898,3108.4,3107.7,1.18828589]
[1644958069985,1.79164898,3108.4,3107.8,0.00261968]
[1644958070586,0.80451,3108.4,3107.8,0.00261968]
[1644958070787,0.80451,3108.4,3107.7,1.18828589]
[1644958070987,1.47944897,3108.5,3107.7,1.18828589]
[1644958071188,1.47944897,3108.5,3107.8,0.00261973]
[1644958071393,0.67498897,3108.5,3107.8,0.00261973]
[1644958071792,0.67498897,3108.5,3107.9,0.8043924]
[1644958071996,0.67498897,3108.5,3107.8,1.00261973]
[1644958072190,0.67498897,3108.5,3107.8,1.0]
[1644958072394,0.67498897,3108.5,3107.8,1.00261976]
[1644958072590,0.67498897,3108.5,3107.8,1.80702976]
[1644958072789,0.67498897,3108.5,3107.9,0.74196776]
[1644958073733,0.61654666,3108.4,3107.9,0.74196776]
[1644958074532,0.61654666,3108.4,3107.9,1.54635776]
[1644958074735,0.61654666,3108.4,3108.0,1.54632856]
[1644958074938,0.61654666,3108.4,3108.1,0.74196776]
[1644958076334,0.67498897,3108.5,3108.3,1.08737128]
[1644958076537,0.67498897,3108.5,3108.4,4.01897817]
[1644958076736,0.67498897,3108.5,3108.4,4.31897817]
[1644958076737,0.67369482,3108.5,3108.4,4.31897817]
[1644958076983,0.67369482,3108.5,3108.4,5.31897817]
[1644958078685,0.67369482,3108.5,3108.4,5.78197817]
[1644958079886,0.67369482,3108.5,3108.4,11.84618526]
[1644958080287,0.67369482,3108.5,3108.4,5.78197817]
[1644958082434,0.001,3110.0,3108.5,6.6]
[1644958082639,0.001,3110.0,3109.3,5.0]
[1644958082835,0.001,3110.0,3109.4,0.74196776]
[1644958083037,0.001,3110.0,3109.5,0.463]
[1644958083038,0.60615996,3110.0,3109.5,0.463]
[1644958083232,0.001,3110.0,3109.6,0.74196776]
[1644958083435,0.001,3110.0,3109.8,0.84681672]
[1644958084134,0.001,3110.0,3109.7,0.80393]
[1644958084335,0.001,3110.0,3109.8,0.75598395]
[1644958084781,0.001,3110.0,3109.8,1.55992265]
[1644958084980,0.001,3110.0,3109.8,0.8039387]
[1644958085186,0.001,3110.0,3109.6,0.463]
[1644958085380,0.001,3110.0,3109.6,0.763]
[1644958085780,0.00529993,3110.0,3109.7,0.75591008]
[1644958085980,0.60250768,3109.9,3109.6,0.763]
[1644958086181,0.60250768,3109.9,3109.7,0.84229015]
[1644958086382,0.001,3110.0,3109.7,2.45017345]
[1644958086582,0.001,3110.0,3109.7,5.65970741]
[1644958086781,0.001,3110.0,3109.7,6.65970741]
[1644958086981,0.001,3110.0,3109.8,0.75544723]
[1644958087182,0.001,3110.0,3109.8,1.05544723]
[1644958087382,0.001,3110.0,3109.8,1.3]
[1644958088440,0.001,3110.0,3109.9,3.21090308]
[1644958088639,0.00287566,3110.4,3110.1,0.8038581]
[1644958088841,0.00287566,3110.4,3110.2,10.44613843]
[1644958089039,2.05074694,3111.8,3110.2,10.44613843]
[1644958089040,1.84757528,3111.8,3110.3,20.01865843]
[1644958089239,0.59152453,3111.7,3110.4,4.26316639]
[1644958089441,0.59152453,3111.7,3110.4,3.5]
[1644958089637,1.73895981,3111.7,3110.9,1.16360569]
[1644958089839,0.59152453,3111.6,3110.9,1.16360569]
[1644958090038,0.59152453,3111.6,3110.7,0.463]
[1644958090246,0.59152453,3111.6,3110.7,0.763]
[1644958090441,0.00287014,3111.4,3110.7,0.763]
[1644958090839,0.00287014,3111.4,3110.7,1.5666819]
[1644958091238,0.59439467,3111.4,3110.8,3.21878733]
[1644958091438,0.59152453,3111.4,3110.8,3.21878733]
[1644958091639,0.00287027,3111.2,3110.9,1.0]
[1644958092086,0.5943948,3111.2,3110.9,0.8035971]
[1644958092290,0.59152453,3111.1,3110.9,0.8035971]
[1644958092482,0.00287027,3111.2,3110.9,0.8035971]
[1644958092683,0.60957528,3111.9,3110.8,1.09882548]
[1644958092887,0.60957528,3111.8,3110.8,1.09882548]
[1644958093085,0.00287027,3111.2,3110.8,1.09882548]
[1644958093284,0.00287027,3111.2,3110.8,5.41864169]
[1644958093484,0.00287027,3111.2,3110.8,1.39882548]
[1644958093684,0.00287027,3111.2,3110.8,1.09882548]
[1644958093887,1.17412169,3111.7,3110.8,1.09882548]
[1644958094085,0.00260821,3111.2,3110.4,4.90648347]
[1644958094286,0.00260821,3111.2,3110.5,1.0]
[1644958094789,0.80388,3111.1,3110.0,1.1595]
[1644958095287,0.00260829,3111.0,3110.2,1.17598137]
[1644958095930,0.00260829,3111.0,3110.2,1.97977397]
[1644958096131,0.00260829,3111.0,3110.2,2.78353397]
[1644958096334,0.80378,3111.2,3110.1,0.3]
[1644958096633,0.00262612,3110.8,3109.8,3.2983]
[1644958096833,0.00262612,3110.8,3109.9,1.0]
[1644958097433,0.80395,3110.6,3109.7,2.8374]
[1644958097633,0.80395,3110.6,3109.5,1.1277]
[1644958097634,0.00262625,3110.5,3109.5,1.1277]
[1644958098633,1.01739246,3110.9,3109.7,1.13017892]
[1644958098835,0.00262625,3110.4,3109.7,1.13017892]
[1644958099492,0.5,3110.0,3109.7,1.93412352]
[1644958101889,0.5,3110.0,3109.7,2.73804352]
[1644958102088,0.5,3110.0,3109.8,3.17544444]
[1644958102290,0.5,3110.0,3109.8,4.17544444]
[1644958102489,0.5,3110.0,3109.9,3.32607526]
[1644958102989,0.5,3110.0,3109.9,4.62607526]
[1644958103239,0.5,3110.0,3109.9,3.62607526]
[1644958103437,0.5,3110.0,3109.9,4.62607526]
[1644958103940,0.5,3110.0,3109.9,5.42987526]
[1644958104638,0.5,3110.0,3109.9,2.1038]
[1644958104837,0.5,3110.0,3109.9,1.3]
[1644958105041,0.50427843,3110.0,3109.9,1.3]
[1644958105340,0.50427843,3110.0,3109.4,0.38677]
[1644958105541,0.50427843,3110.0,3109.3,0.00149888]
[1644958105746,0.50427843,3110.0,3109.2,3.5]
[1644958106340,1.09274967,3109.7,3108.8,0.96897862]
[1644958107993,0.80424,3109.5,3108.9,0.80419]
[1644958108195,1.09274967,3109.7,3108.9,1.10419]
[1644958108397,1.09274967,3109.7,3108.9,0.3]
[1644958108592,1.09274967,3109.7,3108.8,1.26897862]
[1644958108792,1.09274967,3109.7,3108.8,0.96897862]
[1644958108996,0.80415,3109.7,3108.9,0.8041628]
[1644958109193,0.80415,3109.7,3108.8,0.96897862]
[1644958109593,0.80415,3109.7,3109.0,0.80415]
[1644958110396,0.80415,3109.7,3109.1,0.8041177]
[1644958110596,0.8041,3109.9,3109.3,1.03449684]
[1644958110838,0.50427843,3110.0,3109.3,1.83856684]
[1644958111443,0.50427843,3110.0,3109.3,1.83856394]
[1644958111642,0.50427843,3110.0,3109.4,0.80401]
[1644958112641,0.50427843,3110.0,3109.4,1.50801]
[1644958112842,0.58488586,3109.9,3109.4,1.5579792]
[1644958113443,0.58488586,3109.9,3109.4,0.754]
[1644958113646,0.58488586,3109.9,3109.1,1.10414]
[1644958113843,0.58488586,3109.9,3108.9,1.0]
[1644958114044,0.58488586,3109.9,3108.9,0.5]
[1644958114492,0.58488586,3109.9,3108.9,1.30413]
[1644958114493,1.38897586,3109.9,3108.9,1.30413]
[1644958114688,0.58488586,3109.8,3109.2,0.90280121]
[1644958114887,1.61257843,3110.0,3109.2,0.90280121]
[1644958115987,0.5857797,3109.9,3109.3,1.57435875]
[1644958116190,0.5857797,3109.9,3109.3,0.80411]
[1644958116387,0.5857797,3109.9,3109.3,1.6081946]
[1644958116687,0.5857797,3109.9,3109.3,0.80411]
[1644958117489,1.3898697,3109.9,3109.3,0.80411]
[1644958117690,1.3898697,3109.9,3108.7,0.38677]
[1644958117691,0.69551684,3109.1,3108.5,3.5]
[1644958117892,0.69551684,3109.1,3108.2,1.1428]
[1644958118089,0.69551684,3109.1,3108.3,4.2713403]
[1644958118334,0.69551684,3109.1,3108.4,0.7713403]
[1644958118533,0.58429071,3109.0,3108.1,0.1487079]
[1644958118739,0.97711051,3108.9,3108.2,0.77175069]
[1644958118933,0.97711051,3108.9,3108.1,2.17693534]
[1644958119134,0.97711051,3108.9,3108.2,0.77173008]
[1644958119334,0.97711051,3108.9,3108.2,1.07173008]
[1644958119535,0.97711051,3108.9,3108.3,0.77173008]
[1644958119735,0.80438,3108.8,3108.4,0.77173008]
[1644958119937,0.80438,3108.8,3108.2,0.77173008]
[1644958120137,0.80438,3108.8,3108.2,1.07173008]
[1644958120336,0.80438,3108.8,3108.3,0.77173008]
[1644958120538,0.80438,3108.8,3107.9,0.01050734]
[1644958120539,0.58447906,3108.7,3107.9,0.01050734]
[1644958120737,0.80467,3108.5,3108.0,0.77233522]
[1644958120939,0.58447906,3108.4,3108.0,0.77233522]
[1644958121136,0.58447906,3108.4,3107.9,0.01050734]
[1644958121537,2.19373906,3108.4,3107.8,0.00431458]
[1644958121738,0.84279609,3108.0,3107.8,0.00262676]
[1644958122803,4.96323902,3107.9,3107.1,0.00993058]
[1644958123008,0.58485811,3107.8,3107.7,0.0024346]
[1644958123201,4.70343652,3107.8,3107.7,0.0024346]
[1644958124104,0.869,3107.8,3107.1,0.00993058]
[1644958124297,3.23575205,3107.7,3107.6,0.00243468]
[1644958124499,3.46642086,3107.9,3107.6,0.00243468]
[1644958124896,0.84279609,3108.0,3107.6,0.00243468]
[1644958125097,3.2960286,3107.9,3107.4,0.77053559]
[1644958125298,3.2897041,3107.9,3107.4,0.77053559]
[1644958125495,3.2897041,3107.9,3107.1,0.84712763]
[1644958125496,0.80458,3108.1,3107.6,0.00243468]
[1644958125738,2.8308,3108.3,3107.6,0.77289515]
[1644958125938,3.0636,3108.7,3107.7,0.77477505]
[1644958126142,3.34552469,3109.0,3107.8,0.77046047]
[1644958126339,0.80447,3108.5,3107.6,0.80447]
[1644958126539,0.80447,3108.5,3107.7,0.77429326]
[1644958126743,1.85323375,3108.5,3107.8,0.00244113]
[1644958126939,1.04876375,3108.5,3107.8,0.00244113]
[1644958127539,1.04876375,3108.5,3107.8,0.76996079]
[1644958127739,1.85322375,3108.5,3107.8,0.00246895]
[1644958127940,3.33009708,3108.4,3107.8,0.00246895]
[1644958128744,3.33009708,3108.4,3107.1,0.00993058]
[1644958128745,3.93009708,3108.4,3107.1,0.00993058]
[1644958128942,0.96979199,3107.2,3107.1,0.00993058]
[1644958129145,3.80445205,3107.2,3107.1,0.00993058]
[1644958129491,4.10432062,3107.9,3107.1,0.00993058]
[1644958129689,3.60618581,3107.8,3107.1,0.00993058]
[1644958129889,3.2216,3108.0,3107.1,0.00993058]
[1644958129890,0.80477,3107.4,3107.1,0.00993058]
[1644958130090,6.7666093,3108.0,3107.1,0.00993058]
[1644958130091,1.10885457,3107.3,3107.1,0.00993058]
[1644958130889,1.6096,3107.5,3107.1,0.00993058]
[1644958131089,2.93362428,3107.9,3107.1,0.00993058]
[1644958131291,1.2677,3108.1,3107.1,0.00993058]
[1644958131292,0.463,3108.1,3107.1,0.00993058]
[1644958131491,6.5048,3108.2,3107.1,0.01425177]
[1644958131691,2.8112,3108.2,3107.2,0.76624725]
[1644958131890,2.8112,3108.2,3107.3,0.00432119]
[1644958132094,1.1854476,3108.0,3107.3,0.00432119]
[1644958132691,1.1854476,3108.0,3107.6,0.00246342]
[1644958132893,1.9900476,3108.0,3107.6,0.00246342]
[1644958133636,1.9900476,3108.0,3107.1,0.00993058]
[1644958133836,1.9900476,3108.0,3107.2,0.00985602]
[1644958133837,0.87636743,3107.4,3107.2,0.00985602]
[1644958134037,1.68111743,3107.4,3107.2,0.00985602]
[1644958134239,2.45,3107.3,3106.7,5.88842237]
[1644958134540,1.68111743,3107.4,3106.6,1.60933]
[1644958134740,1.68111743,3107.4,3106.7,0.76627658]
[1644958135137,1.68111743,3107.4,3106.6,1.60933]
[1644958135539,1.68111743,3107.4,3106.7,0.7656735]
[1644958136539,1.68111743,3107.4,3106.7,8.33720478]
[1644958136739,1.68111743,3107.4,3106.8,7.57153128]
[1644958137394,1.68111743,3107.4,3106.9,0.00194366]
[1644958137894,0.21876662,3107.4,3106.9,0.00194366]
[1644958138088,1.01454359,3107.3,3106.9,0.00194366]
[1644958138390,0.21876662,3107.4,3106.6,0.7389702]
[1644958138590,0.21876662,3107.4,3106.7,0.80473]
[1644958138790,1.60941,3107.8,3107.0,0.00288161]
[1644958138990,0.80468,3107.6,3107.0,0.00288161]
[1644958139590,0.80468,3107.6,3106.6,0.73931943]
[1644958139790,0.80468,3107.6,3106.8,0.8047]
[1644958139995,0.80468,3107.6,3107.0,1.90006161]
[1644958140191,0.91161673,3107.7,3107.0,1.90006161]
[1644958140743,0.91161673,3107.7,3107.0,1.89718]
[1644958140939,0.91161673,3107.7,3107.1,0.80464]
[1644958141343,3.2672,3108.0,3107.1,0.80464]
[1644958141742,0.80466,3107.7,3107.0,8.37541163]
[1644958141941,0.80466,3107.7,3107.0,7.28]
[1644958142142,0.80466,3107.7,3107.0,7.28288169]
[1644958142948,0.99642627,3107.2,3107.0,7.13557209]
[1644958143150,0.80485,3107.1,3106.5,7.28]
[1644958143346,4.30485,3107.1,3106.5,7.28]
[1644958143548,4.30485,3107.1,3106.2,0.3079462]
[1644958144887,0.80499,3106.8,3106.2,0.3079462]
[1644958145093,0.94563108,3106.7,3106.2,0.3079462]
[1644958145788,3.0025,3107.2,3106.2,0.3079462]
[1644958145988,3.5,3107.3,3106.3,0.00282948]
[1644958145989,0.80483,3107.0,3106.3,0.00282948]
[1644958146787,0.80483,3107.0,3106.4,0.80482]
[1644958146788,1.02630487,3106.7,3106.4,0.80482]
[1644958146988,1.83119487,3106.7,3106.5,0.00282935]
[1644958147386,0.80489,3106.7,3106.5,0.00282935]
[1644958147591,1.1842,3107.4,3106.5,0.00282935]
[1644958147990,2.8381,3107.6,3106.6,0.8048]
[1644958148244,4.43077077,3107.9,3106.8,0.00282917]
[1644958148444,0.83725391,3107.6,3106.8,0.9592615]
[1644958148646,1.1392,3107.9,3106.8,4.19742314]
[1644958148845,0.00282771,3108.4,3107.0,1.19143]
[1644958148846,2.69,3108.3,3107.0,1.19143]
[1644958149045,2.69,3108.3,3107.1,0.73952569]
[1644958149244,2.69,3108.3,3107.2,1.60898]
[1644958149245,3.49447,3108.3,3107.2,1.60898]
[1644958149443,0.80447,3108.3,3107.3,0.73952569]
[1644958149647,1.02436505,3108.0,3107.3,1.68468684]
[1644958149843,1.02436505,3108.0,3107.1,1.60898]
[1644958150045,1.02436505,3108.0,3107.4,0.8045]
[1644958150246,1.82891505,3108.0,3107.5,0.80455]
[1644958150444,1.82891505,3108.0,3107.4,0.8045]
[1644958150644,1.82891505,3108.0,3107.3,0.00429973]
[1644958150846,1.17669126,3107.5,3107.3,0.00429973]
[1644958151045,1.17669126,3107.5,3107.1,0.00429973]
[1644958151247,1.17669126,3107.5,3107.2,0.80464]
[1644958151445,1.17669126,3107.5,3107.2,0.00429973]
[1644958152293,1.98138126,3107.5,3107.2,0.00429973]
[1644958153692,1.17669126,3107.5,3107.2,0.00429973]
[1644958154692,1.17669126,3107.5,3107.0,0.0026803]
[1644958154693,1.98139126,3107.5,3107.0,0.0026803]
[1644958155295,1.98139126,3107.5,3106.7,0.00429973]
[1644958155498,1.17669126,3107.5,3107.0,0.00268028]
[1644958155744,0.80473,3107.2,3107.0,0.00268028]
[1644958156537,0.80473,3107.2,3106.9,0.00429973]
[1644958156738,0.80473,3107.2,3106.9,0.00267431]
[1644958157738,0.80712392,3107.2,3106.6,0.80471]
[1644958157939,0.80712392,3107.2,3106.7,0.00429973]
[1644958158739,1.60929,3107.6,3106.7,4.04481878]
[1644958158940,3.9708,3107.9,3106.8,0.00429973]
[1644958159143,2.7214,3108.5,3106.8,0.00429973]
[1644958159341,2.7214,3108.5,3106.8,1.76729973]
[1644958159599,2.7214,3108.5,3106.9,3.93093531]
[1644958159798,1.0765518,3108.0,3107.3,0.96004675]
[1644958159995,1.0765518,3108.0,3107.2,0.00429973]
[1644958160395,0.00094727,3107.9,3107.2,0.00429973]
[1644958160998,0.00094727,3107.9,3107.2,1.04972173]
[1644958161197,0.00094727,3107.9,3107.3,0.00429973]
[1644958161397,5.31038291,3108.5,3107.4,0.80449]
[1644958161398,1.60898,3108.3,3107.4,0.80449]
[1644958161597,0.00287701,3107.9,3107.4,0.80449]
[1644958161799,0.00287701,3107.9,3107.4,1.10449]
[1644958162003,0.00287701,3107.9,3107.4,0.3]
[1644958162197,0.00287701,3107.9,3107.4,0.463]
[1644958162399,0.00287701,3107.9,3107.8,1.12278492]
[1644958162598,0.92731692,3108.8,3107.8,1.50955492]
[1644958162798,0.00287704,3107.9,3107.8,1.80955492]
[1644958163000,0.00287704,3107.9,3107.4,0.84977]
[1644958163234,0.00287704,3107.9,3107.4,2.44977]
[1644958163438,0.00287704,3107.9,3107.4,5.10556806]
[1644958163634,3.24518652,3108.7,3107.4,2.44977]
[1644958164036,0.00287704,3107.9,3107.4,3.16786928]
[1644958164238,0.80737704,3107.9,3107.4,2.58561928]
[1644958164435,0.80737704,3107.9,3107.4,2.12261928]
[1644958164841,3.33106694,3107.8,3107.3,0.00429973]
[1644958165237,1.60953,3107.7,3107.1,0.00429973]
[1644958165437,3.95844899,3107.6,3107.1,0.00429973]
[1644958165839,0.97517429,3107.5,3107.1,0.00429973]
[1644958166638,0.80471,3107.4,3107.1,0.00429973]
[1644958167196,4.03380252,3107.4,3107.1,0.00429973]
[1644958167394,4.08933368,3107.4,3107.1,0.00429973]
[1644958167595,0.80471,3107.4,3107.1,0.00429973]
[1644958172939,0.80454,3107.8,3107.1,0.80889973]
[1644958173139,0.80454,3107.8,3107.2,0.00429973]
[1644958173745,0.00287698,3107.9,3107.7,1.17524318]
[1644958174238,0.00287698,3107.9,3107.7,3.89165694]
[1644958174497,0.60957528,3108.8,3107.7,1.17524318]
[1644958174689,8.1890237,3109.1,3107.8,3.56392323]
[1644958174690,0.69551684,3109.1,3107.8,3.56392323]
[1644958174889,0.00287706,3108.0,3107.9,1.0]
[1644958175190,0.00287706,3108.0,3107.9,1.90855]
[1644958175387,0.00287706,3108.0,3107.9,3.20855]
[1644958175587,0.00287706,3108.0,3107.9,2.29532]
[1644958175788,1.15578987,3108.8,3107.9,2.29532]
[1644958175989,0.00287696,3108.1,3108.0,0.80432]
[1644958176189,0.00287696,3108.1,3107.9,0.68677]
[1644958176394,0.00287696,3108.1,3107.9,0.38677]
[1644958176589,0.00287696,3108.1,3108.0,0.72660286]
[1644958176990,0.63404651,3108.7,3108.0,1.53093286]
[1644958177191,0.00262525,3108.2,3108.1,0.72660286]
[1644958177891,0.63404651,3108.5,3108.3,0.00017328]
[1644958178092,0.63404651,3108.4,3108.3,0.00017328]
[1644958178367,0.8044,3108.4,3108.3,0.00017328]
[1644958178567,1.43844651,3108.4,3108.3,0.00017328]
[1644958179365,0.63404651,3108.4,3108.3,0.00017328]
[1644958179765,0.00094729,3108.5,3108.3,0.00017328]
[1644958180167,0.6349938,3108.5,3108.3,0.00017328]
[1644958180367,0.63404651,3108.4,3108.3,0.00017328]
[1644958180767,0.00287668,3108.6,3108.3,0.00017328]
[1644958180966,1.03052128,3108.6,3108.3,0.00017328]
[1644958181169,0.63404651,3108.5,3108.3,0.00017328]
[1644958181672,0.63404651,3108.4,3108.3,0.00017328]
[1644958182111,0.00287668,3108.6,3108.1,0.57603595]
[1644958182310,0.00287668,3108.6,3107.4,0.13819997]
[1644958182505,0.80443,3108.3,3107.4,0.13819997]
[1644958183003,1.60901,3108.3,3107.4,0.13819997]
[1644958183405,1.04875222,3107.7,3107.4,0.13819997]
[1644958183605,0.80458,3108.3,3107.4,0.13819997]
[1644958184405,0.8045863,3108.2,3107.4,0.13819997]
[1644958184605,1.03884666,3107.9,3107.4,0.13819997]
[1644958184805,0.80458,3107.8,3107.4,0.13819997]
[1644958185842,1.6091863,3108.2,3107.4,0.13819997]
[1644958185843,3.30700123,3108.3,3107.4,0.13819997]
[1644958186038,0.0024793,3108.4,3107.4,0.13819997]
[1644958186744,7.0729,3108.6,3107.4,1.74717997]
[1644958186939,0.80443,3108.2,3107.6,1.00205136]
[1644958187341,0.87868888,3108.3,3107.6,1.00205136]
[1644958187543,0.00247954,3108.4,3107.6,1.00205136]
[1644958187740,7.71085094,3108.9,3107.6,1.80647136]
[1644958187940,3.8163,3108.9,3107.7,0.8043705]
[1644958188143,0.00247958,3108.4,3107.6,1.00205136]
[1644958188941,0.91825181,3108.3,3107.6,0.95205136]